[Event "*** Titled Tuesday 3|2 Blitz"]
[Site "Chess.com"]
[Date "2015.10.06"]
[Round "1"]
[White "Jahonas"]
[Black "Baggio95"]
[Result "1-0"]
[WhiteElo "2059"]
[BlackElo "2393"]
[TimeControl "180+2"]
[EndTime "11:12:10 PDT"]
[Termination "Jahonas won by resignation"]

1. d4 {[%clk 0:02:59.1]} 1... Nf6 {[%clk 0:02:57.8]} 2. Nf3 {[%clk 0:03:00.3]}
2... g6 {[%clk 0:02:58]} 3. c4 {[%clk 0:02:59.8]} 3... Bg7 {[%clk 0:02:58.9]} 4.
Nc3 {[%clk 0:03:01]} 4... d5 {[%clk 0:03:00.1]} 5. cxd5 {[%clk 0:03:01.5]} 5...
Nxd5 {[%clk 0:03:01.7]} 6. e3 {[%clk 0:03:02.9]} 6... O-O {[%clk 0:03:00.5]} 7.
Qb3 {[%clk 0:03:03.2]} 7... Nxc3 {[%clk 0:02:55.9]} 8. bxc3 {[%clk 0:03:03.7]}
8... c5 {[%clk 0:02:56.9]} 9. Be2 {[%clk 0:03:01.6]} 9... Nc6 {[%clk 0:02:53.3]}
10. O-O {[%clk 0:03:01.7]} 10... b6 {[%clk 0:02:52.8]} 11. Rd1 {[%clk
0:03:00.7]} 11... Qc7 {[%clk 0:02:51]} 12. Bb2 {[%clk 0:03:01]} 12... Bb7 {[%clk
0:02:48.9]} 13. Rac1 {[%clk 0:03:01]} 13... Rfd8 {[%clk 0:02:42.5]} 14. a4
{[%clk 0:03:00.4]} 14... e6 {[%clk 0:02:33.5]} 15. Qa2 {[%clk 0:02:56.9]} 15...
Rac8 {[%clk 0:02:29.1]} 16. Ba3 {[%clk 0:02:56.1]} 16... Na5 {[%clk 0:02:26.1]}
17. dxc5 {[%clk 0:02:49.4]} 17... bxc5 {[%clk 0:02:22.6]} 18. c4 {[%clk
0:02:47.7]} 18... Qc6 {[%clk 0:02:18.4]} 19. Bb2 {[%clk 0:02:26.6]} 19... f6
{[%clk 0:02:10.2]} 20. Bc3 {[%clk 0:02:20.5]} 20... Qc7 {[%clk 0:02:08.9]} 21.
Qb2 {[%clk 0:02:15.8]} 21... e5 {[%clk 0:02:04.1]} 22. Qb5 {[%clk 0:02:09.7]}
22... Nc6 {[%clk 0:01:59.6]} 23. Qxc5 {[%clk 0:02:03.6]} 23... Bf8 {[%clk
0:01:52.2]} 24. Qb5 {[%clk 0:02:00.1]} 24... a6 {[%clk 0:01:48.8]} 25. Qb3
{[%clk 0:01:53.9]} 25... Bc5 {[%clk 0:01:45.8]} 26. Rb1 {[%clk 0:01:50.6]} 26...
Ba8 {[%clk 0:01:45]} 27. h3 {[%clk 0:01:35.4]} 27... Qa7 {[%clk 0:01:35.8]} 28.
Be1 {[%clk 0:01:28.1]} 28... Rb8 {[%clk 0:01:32.2]} 29. Rxd8+ {[%clk 0:01:26.6]}
29... Rxd8 {[%clk 0:01:32.7]} 30. Qc2 {[%clk 0:01:26.1]} 30... Kg7 {[%clk
0:01:30.5]} 31. Rd1 {[%clk 0:01:26]} 31... Qc7 {[%clk 0:01:22]} 32. Rxd8 {[%clk
0:01:25.9]} 32... Qxd8 {[%clk 0:01:22.7]} 33. h4 {[%clk 0:01:21]} 33... Nb4
{[%clk 0:01:19.4]} 34. Bxb4 {[%clk 0:01:20.9]} 34... Bxb4 {[%clk 0:01:20.2]} 35.
c5 {[%clk 0:01:19.3]} 35... Qd5 {[%clk 0:01:06.1]} 36. Bxa6 {[%clk 0:01:13]}
36... Bxc5 {[%clk 0:01:04.5]} 37. Bc4 {[%clk 0:00:53.7]} 37... Qb7 {[%clk
0:00:59.8]} 38. Qb3 {[%clk 0:00:53.1]} 38... Qxb3 {[%clk 0:00:48.4]} 39. Bxb3
{[%clk 0:00:53.7]} 39... Bb4 {[%clk 0:00:43.1]} 40. Bc4 {[%clk 0:00:50.7]} 40...
h5 {[%clk 0:00:42]} 41. Kf1 {[%clk 0:00:50.6]} 41... Kh6 {[%clk 0:00:42.3]} 42.
Ke2 {[%clk 0:00:47.9]} 42... Bc6 {[%clk 0:00:40.2]} 43. Bb5 {[%clk 0:00:48.7]}
43... Bb7 {[%clk 0:00:40.8]} 44. g3 {[%clk 0:00:50]} 44... Bc3 {[%clk
0:00:39.2]} 45. Nd2 {[%clk 0:00:48.9]} 45... f5 {[%clk 0:00:36.7]} 46. Nc4
{[%clk 0:00:48.2]} 46... g5 {[%clk 0:00:31.2]} 47. hxg5+ {[%clk 0:00:48.6]}
47... Kxg5 {[%clk 0:00:31.9]} 48. a5 {[%clk 0:00:49.9]} 48... f4 {[%clk
0:00:30.2]} 49. exf4+ {[%clk 0:00:50.6]} 49... exf4 {[%clk 0:00:31.1]} 50. a6
{[%clk 0:00:51.5]} 50... Ba8 {[%clk 0:00:31.6]} 51. Nd6 {[%clk 0:00:45.7]} 51...
Bd4 {[%clk 0:00:28.9]} 52. Nb7 {[%clk 0:00:41]} 52... fxg3 {[%clk 0:00:28.8]}
53. fxg3 {[%clk 0:00:41.9]} 53... Kg4 {[%clk 0:00:29.2]} 54. Be8 {[%clk
0:00:41.3]} 54... Be5 {[%clk 0:00:26.3]} 55. Nd8 {[%clk 0:00:29.6]} 55... Bxg3
{[%clk 0:00:25.3]} 56. Bc6 {[%clk 0:00:28.1]} 56... Bc7 {[%clk 0:00:22.2]} 57.
Bxa8 {[%clk 0:00:28.1]} 57... Bb6 {[%clk 0:00:21.8]} 58. Ne6 {[%clk 0:00:25.2]}
58... h4 {[%clk 0:00:21.4]} 59. Bf3+ {[%clk 0:00:25.4]} 59... Kg3 {[%clk
0:00:22.2]} 60. Ng5 {[%clk 0:00:24.6]} 60... h3 {[%clk 0:00:22.3]} 61. Ne4+
{[%clk 0:00:25.7]} 61... Kf4 {[%clk 0:00:23.2]} 62. Nc3 {[%clk 0:00:25]} 62...
Kg3 {[%clk 0:00:22.2]} 63. Nb5 {[%clk 0:00:24.7]} 63... h2 {[%clk 0:00:22.4]}
64. a7 {[%clk 0:00:24.9]} 64... Bxa7 {[%clk 0:00:22.6]} 65. Nxa7 {[%clk
0:00:26.8]} 65... Kf4 {[%clk 0:00:23.7]} 66. Nb5 {[%clk 0:00:27.4]} 66... Kg3
{[%clk 0:00:24.8]} 67. Nd4 {[%clk 0:00:28.5]} 67... Kf4 {[%clk 0:00:25.9]} 68.
Bh1 {[%clk 0:00:29.5]} 68... Ke5 {[%clk 0:00:26.8]} 69. Nf3+ {[%clk 0:00:30.4]}
69... Kf4 {[%clk 0:00:28.7]} 70. Nxh2 {[%clk 0:00:32.2]} 70... Kg3 {[%clk
0:00:30.5]} 71. Nf1+ {[%clk 0:00:33.4]} 71... Kf4 {[%clk 0:00:32.4]} 72. Bf3
{[%clk 0:00:34.4]} 72... Ke5 {[%clk 0:00:33.6]} 73. Ke3 {[%clk 0:00:35.8]} 73...
Kf5 {[%clk 0:00:35.5]} 74. Nd2 {[%clk 0:00:37.1]} 74... Ke5 {[%clk 0:00:37.4]}
75. Ne4 {[%clk 0:00:37.7]} 75... Kf5 {[%clk 0:00:39.3]} 76. Be2 {[%clk
0:00:35.7]} 76... Ke5 {[%clk 0:00:41.2]} 77. Bg4 {[%clk 0:00:37]} 77... Kd5
{[%clk 0:00:42.1]} 78. Kf4 {[%clk 0:00:37.7]} 78... Kd4 {[%clk 0:00:44]} 79. Nf6
{[%clk 0:00:38.4]} 79... Kd3 {[%clk 0:00:44.9]} 80. Ke5 {[%clk 0:00:39.8]} 80...
Ke3 {[%clk 0:00:46.7]} 81. Nd5+ {[%clk 0:00:40.6]} 81... Kd3 {[%clk 0:00:47.8]}
82. Bf5+ {[%clk 0:00:42.1]} 82... Kc4 {[%clk 0:00:49.3]} 83. Be4 {[%clk
0:00:42.2]} 83... Kc5 {[%clk 0:00:50.9]} 84. Bd3 {[%clk 0:00:43.8]} 84... Kc6
{[%clk 0:00:50]} 85. Kd4 {[%clk 0:00:44.7]} 85... Kd6 {[%clk 0:00:51.7]} 86. Nc3
{[%clk 0:00:46]} 86... Ke6 {[%clk 0:00:53.1]} 87. Nd5 {[%clk 0:00:46.4]} 87...
Kd6 {[%clk 0:00:53.7]} 88. Bf5 {[%clk 0:00:48]} 88... Kc6 {[%clk 0:00:54.2]} 89.
Ne3 {[%clk 0:00:47.2]} 89... Kd6 {[%clk 0:00:55.5]} 90. Nc4+ {[%clk 0:00:48.5]}
90... Kc6 {[%clk 0:00:56.8]} 91. Be6 {[%clk 0:00:49.2]} 91... Kc7 {[%clk
0:00:57.5]} 92. Kc5 {[%clk 0:00:50.1]} 92... Kd8 {[%clk 0:00:58.9]} 93. Kd6
{[%clk 0:00:51.5]} 93... Ke8 {[%clk 0:01:00.8]} 94. Ne5 {[%clk 0:00:52.6]} 94...
Kf8 {[%clk 0:01:02.7]} 95. Bf5 {[%clk 0:00:51.9]} 95... Kg7 {[%clk 0:01:04.6]}
96. Ke6 {[%clk 0:00:53.2]} 96... Kh6 {[%clk 0:01:06.5]} 97. Kf6 {[%clk
0:00:52.8]} 97... Kh5 {[%clk 0:01:08.1]} 98. Nf3 {[%clk 0:00:54]} 98... Kh6
{[%clk 0:01:09.3]} 99. Bg4 {[%clk 0:00:55.4]} 99... Kh7 {[%clk 0:01:10.4]} 100.
Ng5+ {[%clk 0:00:54.4]} 100... Kh8 {[%clk 0:01:11.4]} 101. Nf7+ {[%clk
0:00:55.4]} 101... Kh7 {[%clk 0:01:12.1]} 102. Bf5+ {[%clk 0:00:56.5]} 102...
Kg8 {[%clk 0:01:13.7]} 103. Bg6 {[%clk 0:00:57.9]} 103... Kf8 {[%clk 0:01:14.5]}
104. Bh7 {[%clk 0:00:59.5]} 104... Ke8 {[%clk 0:01:15.4]} 105. Ne5 {[%clk
0:01:01.4]} 105... Kf8 {[%clk 0:01:16.1]} 106. Nd7+ {[%clk 0:01:01.7]} 106...
Ke8 {[%clk 0:01:17.4]} 107. Ke6 {[%clk 0:01:03.6]} 107... Kd8 {[%clk 0:01:18.8]}
108. Kd6 {[%clk 0:01:05.1]} 108... Ke8 {[%clk 0:01:19.8]} 109. Bg6+ {[%clk
0:01:06.4]} 109... Kd8 {[%clk 0:01:20.9]} 110. Nc5 {[%clk 0:01:07.4]} 110... Kc8
{[%clk 0:01:21.7]} 111. Bf7 {[%clk 0:01:07.5]} 111... Kd8 {[%clk 0:01:22.8]}
112. Nb7+ {[%clk 0:01:07.8]} 112... Kc8 {[%clk 0:01:24]} 113. Kc6 {[%clk
0:01:09.7]} 113... Kb8 {[%clk 0:01:25.4]} 114. Be6 {[%clk 0:01:11.2]} 114... Ka7
{[%clk 0:01:26.7]} 115. Nc5 {[%clk 0:01:12.7]} 115... Kb8 {[%clk 0:01:27.4]}
116. Kb6 {[%clk 0:01:13.9]} 116... Ka8 {[%clk 0:01:28.8]} 117. Bd7 {[%clk
0:01:15.2]} 117... Kb8 {[%clk 0:01:30]} 118. Na6+ {[%clk 0:01:16.9]} 1-0

[Event "*** Titled Tuesday 3|2 Blitz"]
[Site "Chess.com"]
[Date "2015.10.06"]
[Round "2"]
[White "armago"]
[Black "WilliamRDavis"]
[Result "1-0"]
[WhiteElo "2047"]
[BlackElo "1888"]
[TimeControl "180+2"]
[EndTime "11:15:20 PDT"]
[Termination "armago won by resignation"]

1. d4 {[%clk 0:02:57.1]} 1... Nf6 {[%clk 0:03:00.3]} 2. c4 {[%clk 0:02:58.2]}
2... e6 {[%clk 0:03:00.3]} 3. Nc3 {[%clk 0:02:58.9]} 3... c5 {[%clk 0:03:01.6]}
4. d5 {[%clk 0:02:59.7]} 4... exd5 {[%clk 0:03:02.8]} 5. cxd5 {[%clk 0:02:59.9]}
5... d6 {[%clk 0:03:04.1]} 6. e4 {[%clk 0:03:01.2]} 6... g6 {[%clk 0:03:05.4]}
7. h3 {[%clk 0:03:02.7]} 7... Bg7 {[%clk 0:03:04.1]} 8. Nf3 {[%clk 0:03:02.6]}
8... O-O {[%clk 0:03:02.7]} 9. Bg5 {[%clk 0:03:03.9]} 9... a6 {[%clk 0:02:57.8]}
10. Bd3 {[%clk 0:03:03.3]} 10... b5 {[%clk 0:02:57.8]} 11. a3 {[%clk 0:02:59.2]}
11... Re8 {[%clk 0:02:56.2]} 12. O-O {[%clk 0:02:59.7]} 12... Qc7 {[%clk
0:02:55.6]} 13. Qd2 {[%clk 0:02:54.5]} 13... b4 {[%clk 0:02:50.5]} 14. axb4
{[%clk 0:02:53.2]} 14... cxb4 {[%clk 0:02:51.5]} 15. Na4 {[%clk 0:02:51.8]}
15... Nxe4 {[%clk 0:02:45.3]} 16. Bxe4 {[%clk 0:02:51.7]} 16... Rxe4 {[%clk
0:02:45.5]} 17. Rfc1 {[%clk 0:02:49.8]} 17... Qb7 {[%clk 0:02:36.1]} 18. Qc2
{[%clk 0:02:28]} 18... Bd7 {[%clk 0:02:25.8]} 19. Qxe4 {[%clk 0:02:22.9]} 1-0

[Event "*** Titled Tuesday 3|2 Blitz"]
[Site "Chess.com"]
[Date "2015.10.06"]
[Round "2"]
[White "Canonkasparov"]
[Black "jup1978"]
[Result "1-0"]
[WhiteElo "2364"]
[BlackElo "2302"]
[TimeControl "180+2"]
[EndTime "11:15:59 PDT"]
[Termination "Canonkasparov won by resignation"]

1. d4 {[%clk 0:03:01.9]} 1... d5 {[%clk 0:02:55.5]} 2. Nf3 {[%clk 0:03:02.3]}
2... Nf6 {[%clk 0:02:53.4]} 3. Bf4 {[%clk 0:03:02.5]} 3... e6 {[%clk 0:02:51.2]}
4. e3 {[%clk 0:03:03.2]} 4... Bd6 {[%clk 0:02:49.4]} 5. Bg3 {[%clk 0:03:03.1]}
5... c5 {[%clk 0:02:45.8]} 6. c3 {[%clk 0:03:03.3]} 6... Nc6 {[%clk 0:02:47]} 7.
Nbd2 {[%clk 0:03:03.4]} 7... Nh5 {[%clk 0:02:46.8]} 8. Be2 {[%clk 0:02:56]} 8...
Nxg3 {[%clk 0:02:44.9]} 9. hxg3 {[%clk 0:02:57.9]} 9... b6 {[%clk 0:02:46.4]}
10. Bb5 {[%clk 0:02:56.2]} 10... Bd7 {[%clk 0:02:46.2]} 11. Qe2 {[%clk
0:02:53.5]} 11... h6 {[%clk 0:02:40.8]} 12. a3 {[%clk 0:02:51.7]} 12... Na5
{[%clk 0:02:35.3]} 13. Bd3 {[%clk 0:02:49]} 13... Qc7 {[%clk 0:02:29.3]} 14. e4
{[%clk 0:02:47.2]} 14... cxd4 {[%clk 0:02:19.4]} 15. cxd4 {[%clk 0:02:45]} 15...
Bc6 {[%clk 0:02:11.5]} 16. e5 {[%clk 0:02:44.2]} 16... Be7 {[%clk 0:02:12.6]}
17. g4 {[%clk 0:02:41.4]} 17... g6 {[%clk 0:01:56.6]} 18. Rc1 {[%clk 0:02:37.9]}
18... Qd7 {[%clk 0:01:56.9]} 19. b4 {[%clk 0:02:34.6]} 19... Nc4 {[%clk
0:01:49.9]} 20. Nxc4 {[%clk 0:02:34.2]} 20... dxc4 {[%clk 0:01:51.8]} 21. Rxc4
{[%clk 0:02:34]} 21... Rd8 {[%clk 0:01:46.3]} 22. Rxc6 {[%clk 0:02:33.2]} 1-0

[Event "*** Titled Tuesday 3|2 Blitz"]
[Site "Chess.com"]
[Date "2015.10.06"]
[Round "2"]
[White "SenseiJulio"]
[Black "Chesster_30"]
[Result "1-0"]
[WhiteElo "2521"]
[BlackElo "1632"]
[TimeControl "180+2"]
[EndTime "11:16:43 PDT"]
[Termination "SenseiJulio won by resignation"]

1. d4 {[%clk 0:03:01.9]} 1... d5 {[%clk 0:03:00.9]} 2. c4 {[%clk 0:03:02.8]}
2... c6 {[%clk 0:03:02.3]} 3. Nf3 {[%clk 0:03:00.2]} 3... Nf6 {[%clk 0:03:03]}
4. g3 {[%clk 0:03:01]} 4... dxc4 {[%clk 0:03:01.8]} 5. Bg2 {[%clk 0:03:01.7]}
5... g6 {[%clk 0:03:03.1]} 6. a4 {[%clk 0:02:58.8]} 6... Bg7 {[%clk 0:03:03.6]}
7. Na3 {[%clk 0:02:59.9]} 7... O-O {[%clk 0:03:01.5]} 8. Nxc4 {[%clk 0:03:00]}
8... Nbd7 {[%clk 0:03:01.2]} 9. O-O {[%clk 0:02:59.7]} 9... Nb6 {[%clk
0:03:00.4]} 10. Nce5 {[%clk 0:02:57.1]} 10... Nfd7 {[%clk 0:02:58.9]} 11. a5
{[%clk 0:02:52.3]} 11... Nxe5 {[%clk 0:02:53.7]} 12. Nxe5 {[%clk 0:02:51.5]}
12... Nd7 {[%clk 0:02:52.4]} 13. Nc4 {[%clk 0:02:45.1]} 13... e5 {[%clk
0:02:49.3]} 14. d5 {[%clk 0:02:35.1]} 14... cxd5 {[%clk 0:02:42.2]} 15. Qxd5
{[%clk 0:02:37]} 15... a6 {[%clk 0:02:20.2]} 16. Be3 {[%clk 0:02:22.5]} 16...
Qe7 {[%clk 0:02:08.8]} 17. Rfd1 {[%clk 0:02:18.4]} 17... Kh8 {[%clk 0:01:37.2]}
18. Qd6 {[%clk 0:02:19.4]} 18... Re8 {[%clk 0:01:34.4]} 19. Rac1 {[%clk
0:02:05.9]} 19... Nf6 {[%clk 0:01:18]} 20. Qxe7 {[%clk 0:02:04.6]} 20... Rxe7
{[%clk 0:01:19.9]} 21. Nb6 {[%clk 0:02:06]} 21... Re8 {[%clk 0:01:19.1]} 22.
Nxa8 {[%clk 0:02:06.4]} 1-0

[Event "*** Titled Tuesday 3|2 Blitz"]
[Site "Chess.com"]
[Date "2015.10.06"]
[Round "2"]
[White "HansCoolNiemann"]
[Black "FMCouch"]
[Result "1-0"]
[WhiteElo "2064"]
[BlackElo "2030"]
[TimeControl "180+2"]
[EndTime "11:17:22 PDT"]
[Termination "HansCoolNiemann won by resignation"]

1. d4 {[%clk 0:03:01.6]} 1... Nf6 {[%clk 0:03:00.1]} 2. c4 {[%clk 0:03:02.1]}
2... g6 {[%clk 0:03:01.7]} 3. Nc3 {[%clk 0:03:02.8]} 3... Bg7 {[%clk 0:03:03.6]}
4. e4 {[%clk 0:03:04.2]} 4... d6 {[%clk 0:03:05.1]} 5. Nf3 {[%clk 0:03:05.7]}
5... O-O {[%clk 0:03:06.7]} 6. Be2 {[%clk 0:03:07.2]} 6... e5 {[%clk 0:03:08]}
7. dxe5 {[%clk 0:03:08.7]} 7... dxe5 {[%clk 0:03:09.9]} 8. Qxd8 {[%clk
0:03:09.6]} 8... Rxd8 {[%clk 0:03:11.8]} 9. Bg5 {[%clk 0:03:10.3]} 9... Nbd7
{[%clk 0:03:12.9]} 10. O-O-O {[%clk 0:03:10.8]} 10... Rf8 {[%clk 0:03:14.1]} 11.
Ne1 {[%clk 0:02:45]} 11... Nc5 {[%clk 0:03:09.3]} 12. f3 {[%clk 0:02:44.9]}
12... a5 {[%clk 0:03:02.5]} 13. Be3 {[%clk 0:02:43.3]} 13... Ne6 {[%clk
0:02:58.7]} 14. Nc2 {[%clk 0:02:44.4]} 14... c6 {[%clk 0:02:40.2]} 15. b3 {[%clk
0:02:42.7]} 15... Nd7 {[%clk 0:02:40]} 16. Kb2 {[%clk 0:02:42.8]} 16... Re8
{[%clk 0:02:35.2]} 17. Rd2 {[%clk 0:02:42.9]} 17... Ndc5 {[%clk 0:02:34.6]} 18.
Rhd1 {[%clk 0:02:43.1]} 18... Bf8 {[%clk 0:02:30.7]} 19. a3 {[%clk 0:02:43.5]}
19... Kg7 {[%clk 0:02:24.5]} 20. b4 {[%clk 0:02:43.8]} 20... axb4 {[%clk
0:02:26.1]} 21. axb4 {[%clk 0:02:45.7]} 21... Na4+ {[%clk 0:02:25.4]} 22. Nxa4
{[%clk 0:02:46]} 22... Rxa4 {[%clk 0:02:27.3]} 23. Kb3 {[%clk 0:02:47.3]} 23...
Ra8 {[%clk 0:02:23.8]} 24. c5 {[%clk 0:02:48.1]} 24... Nc7 {[%clk 0:02:20]} 25.
Bc4 {[%clk 0:02:45.6]} 25... Nb5 {[%clk 0:02:18.5]} 26. Rd8 {[%clk 0:02:34.8]}
26... Be6 {[%clk 0:02:18.3]} 27. Rxe8 {[%clk 0:02:29.4]} 27... Bxc4+ {[%clk
0:02:18.9]} 28. Kxc4 {[%clk 0:02:29.4]} 28... Rxe8 {[%clk 0:02:20.8]} 29. Rd7
{[%clk 0:02:29.8]} 29... Ra8 {[%clk 0:02:14.8]} 30. Rxb7 {[%clk 0:02:24.8]}
30... Ra2 {[%clk 0:02:15]} 31. Kb3 {[%clk 0:02:25.4]} 31... Ra6 {[%clk
0:01:59.4]} 32. Rb6 {[%clk 0:02:26]} 32... Rxb6 {[%clk 0:02:00.7]} 33. cxb6
{[%clk 0:02:27.9]} 33... Nd6 {[%clk 0:02:00.5]} 34. Bc5 {[%clk 0:02:25.4]} 34...
Nb7 {[%clk 0:02:01.5]} 35. Kc4 {[%clk 0:02:26.7]} 35... f6 {[%clk 0:01:55]} 36.
Bxf8+ {[%clk 0:02:22.6]} 36... Kxf8 {[%clk 0:01:56.9]} 37. b5 {[%clk 0:02:24]}
37... cxb5+ {[%clk 0:01:51.7]} 38. Kxb5 {[%clk 0:02:23.2]} 38... Ke7 {[%clk
0:01:53.6]} 39. Kc6 {[%clk 0:02:23.8]} 39... Nd8+ {[%clk 0:01:54.5]} 40. Kc7
{[%clk 0:02:24.9]} 40... Ne6+ {[%clk 0:01:55.6]} 41. Kc8 {[%clk 0:02:26.3]}
41... Kd6 {[%clk 0:01:56.1]} 42. b7 {[%clk 0:02:26.8]} 1-0

[Event "*** Titled Tuesday 3|2 Blitz"]
[Site "Chess.com"]
[Date "2015.10.06"]
[Round "2"]
[White "jefferyx"]
[Black "AleksandrNevski"]
[Result "1/2-1/2"]
[WhiteElo "2550"]
[BlackElo "2425"]
[TimeControl "180+2"]
[EndTime "11:17:33 PDT"]
[Termination "Game drawn by repetition"]

1. b4 {[%clk 0:03:01.9]} 1... d5 {[%clk 0:02:59.7]} 2. Bb2 {[%clk 0:03:02.5]}
2... Bg4 {[%clk 0:03:00.3]} 3. a3 {[%clk 0:03:02.6]} 3... e6 {[%clk 0:03:00.8]}
4. h3 {[%clk 0:03:03.7]} 4... Bh5 {[%clk 0:03:01.2]} 5. g4 {[%clk 0:03:04.8]}
5... Bg6 {[%clk 0:03:01.9]} 6. d3 {[%clk 0:03:06.1]} 6... h5 {[%clk 0:02:57.6]}
7. gxh5 {[%clk 0:02:57]} 7... Bxh5 {[%clk 0:02:57]} 8. Nd2 {[%clk 0:02:58.1]}
8... Nd7 {[%clk 0:02:53.8]} 9. Ngf3 {[%clk 0:02:59.3]} 9... Ngf6 {[%clk
0:02:51.6]} 10. Rg1 {[%clk 0:02:59.6]} 10... c6 {[%clk 0:02:45]} 11. c4 {[%clk
0:03:00.6]} 11... a5 {[%clk 0:02:31]} 12. Bc3 {[%clk 0:03:01.4]} 12... axb4
{[%clk 0:02:22.4]} 13. axb4 {[%clk 0:03:03.3]} 13... Bxf3 {[%clk 0:01:54.6]} 14.
exf3 {[%clk 0:02:42.2]} 14... g6 {[%clk 0:01:55.9]} 15. Rxa8 {[%clk 0:02:36.8]}
15... Qxa8 {[%clk 0:01:55.3]} 16. Qc1 {[%clk 0:02:28.7]} 16... Bg7 {[%clk
0:01:53.6]} 17. Qa1 {[%clk 0:02:27.1]} 17... O-O {[%clk 0:01:50.4]} 18. Qxa8
{[%clk 0:02:17.7]} 18... Rxa8 {[%clk 0:01:49.6]} 19. Kd1 {[%clk 0:02:19.6]}
19... Nh5 {[%clk 0:01:47.6]} 20. Bxg7 {[%clk 0:02:17.7]} 20... Kxg7 {[%clk
0:01:49.5]} 21. b5 {[%clk 0:02:02.4]} 21... Ra1+ {[%clk 0:01:41.6]} 22. Kc2
{[%clk 0:02:01.1]} 22... Kf6 {[%clk 0:00:57.7]} 23. Kb2 {[%clk 0:02:02.4]} 23...
Rd1 {[%clk 0:00:56.8]} 24. Kc2 {[%clk 0:02:03.6]} 24... Ra1 {[%clk 0:00:57.3]}
25. Kb2 {[%clk 0:02:04.7]} 25... Rd1 {[%clk 0:00:55.5]} 26. Kc2 {[%clk
0:02:05.8]} 26... Ra1 {[%clk 0:00:54.3]} 1/2-1/2

[Event "*** Titled Tuesday 3|2 Blitz"]
[Site "Chess.com"]
[Date "2015.10.06"]
[Round "2"]
[White "E-Shaposhnikov"]
[Black "Zvonokchess"]
[Result "1-0"]
[WhiteElo "2535"]
[BlackElo "2546"]
[TimeControl "180+2"]
[EndTime "11:17:53 PDT"]
[Termination "E-Shaposhnikov won by resignation"]

1. e4 {[%clk 0:02:59]} 1... c5 {[%clk 0:02:59.3]} 2. Nf3 {[%clk 0:02:59.4]} 2...
e6 {[%clk 0:03:00]} 3. d3 {[%clk 0:03:00.1]} 3... Nc6 {[%clk 0:03:00.4]} 4. g3
{[%clk 0:02:57.5]} 4... g6 {[%clk 0:03:01.3]} 5. Bg2 {[%clk 0:02:58.3]} 5... Bg7
{[%clk 0:03:02.5]} 6. c3 {[%clk 0:03:00]} 6... Nge7 {[%clk 0:03:00.9]} 7. h4
{[%clk 0:02:59.4]} 7... h6 {[%clk 0:03:01.4]} 8. d4 {[%clk 0:02:57.3]} 8... cxd4
{[%clk 0:02:23.2]} 9. cxd4 {[%clk 0:02:59.2]} 9... d5 {[%clk 0:02:24]} 10. e5
{[%clk 0:03:00.7]} 10... f6 {[%clk 0:02:25.3]} 11. exf6 {[%clk 0:03:00]} 11...
Bxf6 {[%clk 0:02:25.8]} 12. Nc3 {[%clk 0:03:01.6]} 12... Nf5 {[%clk 0:02:24.6]}
13. Ne2 {[%clk 0:03:01.3]} 13... Qb6 {[%clk 0:02:17.3]} 14. O-O {[%clk
0:03:02.1]} 14... O-O {[%clk 0:02:11.3]} 15. Nf4 {[%clk 0:03:00.1]} 15... Kh7
{[%clk 0:02:10.6]} 16. h5 {[%clk 0:03:01]} 16... gxh5 {[%clk 0:01:57.3]} 17.
Nxh5 {[%clk 0:02:51.1]} 17... Bxd4 {[%clk 0:01:57.8]} 18. Nxd4 {[%clk
0:02:46.9]} 18... Qxd4 {[%clk 0:01:58.6]} 19. Qe2 {[%clk 0:02:37.3]} 19... Qe5
{[%clk 0:01:59]} 20. Qd2 {[%clk 0:02:34.4]} 20... Qd4 {[%clk 0:01:45.7]} 21. Qe2
{[%clk 0:02:32.4]} 21... Qe5 {[%clk 0:01:46.6]} 22. Qg4 {[%clk 0:02:23.7]} 22...
Rg8 {[%clk 0:01:26.7]} 23. Qh3 {[%clk 0:02:22.6]} 23... Bd7 {[%clk 0:01:27.4]}
24. Bf4 {[%clk 0:02:21.9]} 24... Qxb2 {[%clk 0:01:27]} 25. Rab1 {[%clk 0:02:21]}
25... Qh8 {[%clk 0:01:09.9]} 26. Rxb7 {[%clk 0:02:20.4]} 26... Rad8 {[%clk
0:01:11]} 27. Bxd5 {[%clk 0:02:19.2]} 27... Ncd4 {[%clk 0:01:09]} 28. Bxe6
{[%clk 0:02:16.6]} 28... Nxe6 {[%clk 0:00:56.3]} 29. Qxf5+ {[%clk 0:02:15.7]}
29... Rg6 {[%clk 0:00:58.2]} 30. Qf7+ {[%clk 0:02:13.8]} 30... Ng7 {[%clk
0:00:55.7]} 31. Rxd7 {[%clk 0:02:11]} 1-0

[Event "*** Titled Tuesday 3|2 Blitz"]
[Site "Chess.com"]
[Date "2015.10.06"]
[Round "2"]
[White "silverback96"]
[Black "dretch"]
[Result "0-1"]
[WhiteElo "1887"]
[BlackElo "2553"]
[TimeControl "180+2"]
[EndTime "11:19:06 PDT"]
[Termination "dretch won by resignation"]

1. d4 {[%clk 0:03:00]} 1... d5 {[%clk 0:02:59.9]} 2. c4 {[%clk 0:02:59.4]} 2...
c6 {[%clk 0:03:01]} 3. Nf3 {[%clk 0:02:59.2]} 3... Nf6 {[%clk 0:03:00.9]} 4. Nc3
{[%clk 0:03:00.1]} 4... dxc4 {[%clk 0:03:02.1]} 5. a4 {[%clk 0:02:59.4]} 5...
Bf5 {[%clk 0:02:59.6]} 6. Ne5 {[%clk 0:03:00.2]} 6... Nbd7 {[%clk 0:03:00]} 7.
Nxc4 {[%clk 0:02:59.9]} 7... Nb6 {[%clk 0:03:01.4]} 8. Ne5 {[%clk 0:02:58.4]}
8... a5 {[%clk 0:02:58.8]} 9. g3 {[%clk 0:02:48.3]} 9... e6 {[%clk 0:02:58.1]}
10. Bg2 {[%clk 0:02:49.1]} 10... Bb4 {[%clk 0:02:59.6]} 11. O-O {[%clk
0:02:47.1]} 11... O-O {[%clk 0:02:56.9]} 12. Re1 {[%clk 0:02:36.8]} 12... h6
{[%clk 0:02:35.5]} 13. e4 {[%clk 0:02:36.5]} 13... Bh7 {[%clk 0:02:36.8]} 14. f4
{[%clk 0:02:29.8]} 14... Nfd7 {[%clk 0:02:31.9]} 15. Be3 {[%clk 0:02:23.7]}
15... Nxe5 {[%clk 0:02:25.8]} 16. fxe5 {[%clk 0:02:20.9]} 16... Nc4 {[%clk
0:02:27.7]} 17. Bc1 {[%clk 0:02:18.2]} 17... c5 {[%clk 0:02:22.7]} 18. d5 {[%clk
0:02:11.1]} 18... Nxe5 {[%clk 0:02:21]} 19. Qh5 {[%clk 0:02:02]} 19... Nd3
{[%clk 0:02:16.4]} 20. Rf1 {[%clk 0:01:59.8]} 20... Bg6 {[%clk 0:02:15.1]} 21.
Qd1 {[%clk 0:01:50.4]} 21... c4 {[%clk 0:02:16.2]} 22. Nb5 {[%clk 0:01:43.4]}
22... Qb6+ {[%clk 0:02:15.8]} 23. Kh1 {[%clk 0:01:44.1]} 23... Nf2+ {[%clk
0:02:16.9]} 24. Rxf2 {[%clk 0:01:41.6]} 24... Qxf2 {[%clk 0:02:18.8]} 25. Bf4
{[%clk 0:01:38.8]} 25... exd5 {[%clk 0:02:17.1]} 26. exd5 {[%clk 0:01:38.8]}
26... Rfe8 {[%clk 0:02:18.7]} 27. Qg4 {[%clk 0:00:12.2]} 27... Re1+ {[%clk
0:02:07.1]} 0-1